bitfinex/quotes_BTCUSD_20260310
["timestamp","ask_amount","ask_price","bid_price","bid_amount"]
[1773112799685,0.07142914,70232.0,70200.0,0.75377372]
[1773112799686,0.07142904,70232.0,70220.0,0.0758005]
[1773112799886,0.0002364,70232.0,70221.0,0.05678084]
[1773112800293,0.07142926,70232.0,70221.0,0.05678084]
[1773112800495,0.03,70231.0,70221.0,0.00144]
[1773112800687,0.07142926,70232.0,70221.0,0.00144]
[1773112800688,0.03,70229.0,70221.0,0.00144]
[1773112801089,0.08474098,70229.0,70222.0,0.07120275]
[1773112801293,0.03,70227.0,70221.0,0.00144]
[1773112801506,0.03,70223.0,70202.0,0.05534084]
[1773112801693,0.07119595,70229.0,70194.0,0.07123077]
[1773112801694,0.03,70211.0,70194.0,0.07123077]
[1773112801919,0.6822045,70220.0,70196.0,0.07142825]
[1773112801920,0.03,70205.0,70196.0,0.07142825]
[1773112802405,0.03,70205.0,70197.0,0.00144]
[1773112802807,0.03,70205.0,70198.0,0.00144]
[1773112803125,0.03,70209.0,70199.0,0.07122608]
[1773112803330,0.03,70207.0,70199.0,0.07122608]
[1773112805622,0.10121821,70207.0,70198.0,0.00144]
[1773112805826,0.03,70205.0,70199.0,0.00144]
[1773112806250,0.08474098,70205.0,70197.0,0.0712272]
[1773112806582,0.03,70203.0,70200.0,0.00144]
[1773112806772,0.03,70203.0,70197.0,0.0712272]
[1773112806977,0.03,70203.0,70199.0,0.00144]
[1773112807476,0.03,70209.0,70199.0,0.00144]
[1773112807702,0.03,70209.0,70192.0,0.07123247]
[1773112807703,0.30706166,70201.0,70186.0,0.07291547]
[1773112807915,0.03,70197.0,70188.0,0.07287691]
[1773112808276,0.00022001,70207.0,70190.0,0.05534084]
[1773112808510,0.00033409,70207.0,70194.0,0.05534084]
[1773112808713,0.00033409,70207.0,70196.0,0.05534084]
[1773112809686,0.00033409,70207.0,70198.0,0.05609067]
[1773112811288,0.03033409,70207.0,70198.0,0.05609067]
[1773112811498,0.03033409,70207.0,70197.0,0.07122811]
[1773112811499,0.12391197,70219.0,70200.0,0.05609067]
[1773112811864,0.07120683,70218.0,70204.0,0.05609067]
[1773112812069,0.00022001,70222.0,70204.0,0.26479359]
[1773112812273,0.00022001,70222.0,70207.0,0.05609067]
[1773112812546,0.00022001,70222.0,70203.0,0.07122202]
[1773112812547,0.10142283,70222.0,70208.0,0.05753067]
[1773112812979,0.1526884,70222.0,70208.0,0.05753067]
[1773112813343,0.10142283,70222.0,70208.0,0.05753067]
[1773112813542,0.03,70220.0,70208.0,0.00144]
[1773112813962,0.03,70220.0,70209.0,0.07121594]
[1773112814371,0.03,70218.0,70209.0,0.07121594]
[1773112814550,0.07120579,70219.0,70201.0,0.07122405]
[1773112814551,0.03,70214.0,70201.0,0.07122405]
[1773112814759,0.35832723,70210.0,70200.0,0.07266406]
[1773112814954,0.35844131,70210.0,70200.0,0.07266406]
[1773112815149,0.08137965,70210.0,70200.0,0.07266406]
[1773112817055,0.03,70209.0,70200.0,0.07266406]
[1773112817494,0.03,70209.0,70201.0,0.05609067]
[1773112817702,0.00011408,70210.0,70201.0,0.05609067]
[1773112820540,0.00011408,70210.0,70202.0,0.07122304]
[1773112820842,0.00011408,70210.0,70202.0,0.12731371]
[1773112821473,0.00011408,70210.0,70203.0,0.05609067]
[1773112822420,0.00011408,70210.0,70204.0,0.07122101]
[1773112823666,0.00033409,70210.0,70204.0,0.07122101]
[1773112824511,0.03,70221.0,70208.0,0.05609067]
[1773112824703,0.03,70217.0,70209.0,0.00144]
[1773112824936,0.03,70217.0,70209.0,0.00046904]
[1773112825083,0.00022001,70222.0,70210.0,0.05609067]
[1773112825283,0.07142281,70222.0,70210.0,0.05609067]
[1773112825569,0.03,70221.0,70210.0,0.05609067]
[1773112826676,0.00022001,70222.0,70211.0,0.12730458]
[1773112827077,0.03,70221.0,70211.0,0.12730458]
[1773112828299,0.08126557,70221.0,70211.0,0.07121391]
[1773112830008,0.03022001,70222.0,70211.0,0.12730458]
[1773112830404,0.00045001,70225.0,70213.0,0.05609067]
[1773112830658,0.07120072,70224.0,70212.0,0.05609067]
[1773112830885,0.00045001,70225.0,70212.0,0.05609067]
[1773112831013,0.03045001,70225.0,70212.0,0.05609067]
[1773112831212,0.03045001,70225.0,70210.0,0.07121391]
[1773112831213,0.05126557,70222.0,70210.0,0.07121391]
[1773112831454,0.03,70221.0,70211.0,0.00144]
[1773112831962,0.03,70221.0,70213.0,0.05609067]
[1773112832121,0.00045001,70225.0,70213.0,0.05609067]
[1773112832327,0.00022001,70221.0,70213.0,0.05609067]
[1773112832743,0.03,70227.0,70214.0,0.26479359]
[1773112832945,0.03,70227.0,70212.0,0.00144]
[1773112832946,0.03,70227.0,70217.0,0.05609067]
[1773112833144,0.03,70227.0,70216.0,0.26479359]
[1773112833145,0.03,70227.0,70219.0,0.05609067]
[1773112833346,0.03,70228.0,70220.0,0.07120478]
[1773112834125,0.0002364,70232.0,70221.0,0.05609067]
[1773112834466,0.00035053,70232.0,70222.0,0.05609067]
[1773112835164,0.03,70231.0,70222.0,0.05609067]
[1773112835339,0.03,70231.0,70223.0,0.07120174]
[1773112835542,0.03,70231.0,70224.0,0.00144]
[1773112835752,0.10119382,70231.0,70224.0,0.00144]
[1773112836215,0.03,70231.0,70224.0,0.00144]
[1773112836418,0.03,70230.0,70222.0,0.07120242]
[1773112836615,0.03,70230.0,70224.0,0.00144]
[1773112837420,0.03035053,70232.0,70224.0,0.00144]
[1773112837760,0.03035053,70232.0,70225.0,0.07119971]
[1773112839124,0.03022001,70231.0,70225.0,0.07119971]
[1773112839627,0.07141074,70234.0,70225.0,0.07119971]
[1773112839628,0.00022001,70234.0,70225.0,0.07119971]
[1773112839826,0.00022001,70234.0,70226.0,0.05300864]
[1773112840063,0.03022001,70234.0,70226.0,0.05300864]
[1773112840673,0.10141069,70234.0,70226.0,0.05300864]
[1773112840874,0.10141069,70234.0,70225.0,0.07119971]
[1773112841865,0.03,70233.0,70225.0,0.07119971]
[1773112842860,0.03022001,70234.0,70225.0,0.07119971]
[1773112843266,0.03022001,70234.0,70225.0,0.12420835]
[1773112843827,0.03022001,70234.0,70226.0,0.12420684]
[1773112845205,0.00022001,70237.0,70226.0,0.0711982]
[1773112845378,0.00022001,70237.0,70227.0,0.05300864]
[1773112845786,0.00022001,70237.0,70228.0,0.07119667]
[1773112846202,0.03022001,70237.0,70228.0,0.07119667]
[1773112846918,0.10140756,70237.0,70228.0,0.07119667]
[1773112847278,0.10140756,70237.0,70216.0,0.07120833]
[1773112847279,0.03,70235.0,70216.0,0.07120833]
[1773112847458,0.04975882,70226.0,70216.0,0.07132204]
[1773112847648,0.03,70225.0,70216.0,0.07132204]
[1773112847852,0.03,70225.0,70217.0,0.00144]
[1773112848096,0.03,70225.0,70218.0,0.07120681]
[1773112849699,0.03,70226.0,70218.0,0.07120681]
[1773112850103,0.00144,70230.0,70218.0,0.07120681]
[1773112850300,0.00144,70230.0,70219.0,0.05300864]
[1773112850733,0.07118926,70236.0,70218.0,0.07120681]
[1773112850734,0.03,70235.0,70221.0,0.05300864]
[1773112851761,0.03,70234.0,70222.0,0.05300864]
[1773112851933,0.03,70234.0,70224.0,0.05300864]
[1773112852136,0.00166001,70239.0,70226.0,0.05300864]
[1773112852137,0.00022001,70239.0,70226.0,0.05300864]
[1773112852368,0.00022001,70239.0,70225.0,0.07119971]
[1773112852369,0.1703878,70256.0,70232.0,0.25879322]
[1773112852370,0.000211,70256.0,70232.0,0.25879322]
[1773112852564,0.000211,70256.0,70240.0,0.05300864]
[1773112852782,0.000211,70256.0,70244.0,0.25879322]
[1773112853002,0.000211,70256.0,70245.0,0.05286115]
[1773112853384,0.000211,70256.0,70241.0,0.17104831]
[1773112853385,0.00022001,70261.0,70248.0,0.24253586]
[1773112853621,0.00562,70264.0,70252.0,0.0486357]
[1773112853775,0.00038058,70261.0,70252.0,0.04992822]
[1773112853975,0.00562,70264.0,70252.0,0.04992822]
[1773112854191,0.00573406,70264.0,70254.0,0.0486357]
[1773112854389,0.03,70269.0,70254.0,0.0486357]
[1773112854596,0.06535782,70277.0,70257.0,0.0486357]
[1773112854963,0.000211,70279.0,70261.0,0.0486357]
[1773112855143,0.000211,70279.0,70260.0,0.22716092]
[1773112855144,0.000211,70279.0,70264.0,0.24253586]
[1773112855359,0.000211,70279.0,70260.0,0.22716092]
[1773112855360,0.03,70286.0,70267.0,0.0486357]
[1773112855548,0.40188813,70286.0,70269.0,0.0486357]
[1773112855890,0.40188825,70286.0,70269.0,0.0486357]
[1773112856096,0.00022001,70279.0,70269.0,0.0486357]
[1773112856312,0.05123007,70273.0,70259.0,0.00144]
[1773112856521,0.03,70262.0,70250.0,0.00023]
[1773112856728,0.03,70262.0,70249.0,0.07261504]
[1773112856729,0.08123007,70260.0,70249.0,0.07261504]
[1773112856936,0.03,70258.0,70249.0,0.07261504]
[1773112857358,0.05123007,70257.0,70245.0,0.0711792]
[1773112857566,0.00011397,70262.0,70245.0,0.00144]
[1773112857567,0.03,70252.0,70245.0,0.00144]
[1773112857994,0.03,70252.0,70246.0,0.00144]
[1773112858197,0.10117245,70252.0,70242.0,0.07118045]
[1773112858392,0.1011729,70252.0,70242.0,0.07118045]
[1773112859248,0.03,70252.0,70242.0,0.07118045]
[1773112860164,0.10117271,70252.0,70242.0,0.07118045]
[1773112860376,0.03,70253.0,70242.0,0.07118045]
[1773112860570,0.10117174,70253.0,70242.0,0.07118045]
[1773112860945,0.03,70253.0,70242.0,0.07118045]
[1773112861319,0.03,70252.0,70242.0,0.07118045]
[1773112861517,0.07115809,70267.0,70245.0,0.0486357]
[1773112861518,0.00011397,70262.0,70245.0,0.0486357]
[1773112861770,0.00011397,70262.0,70248.0,0.24253586]
[1773112861971,0.05123007,70260.0,70249.0,0.00144]
[1773112862176,0.24951973,70261.0,70242.0,0.07118045]
[1773112862177,0.24951973,70259.0,70242.0,0.07118045]
[1773112862376,0.08123007,70254.0,70243.0,0.00144]
[1773112864321,0.00033398,70262.0,70247.0,0.0486357]
[1773112864527,0.00033398,70262.0,70249.0,0.0486357]
[1773112864738,0.00033398,70262.0,70251.0,0.0486357]
[1773112864945,0.07281446,70270.0,70254.0,0.23829945]
[1773112865158,0.07281446,70270.0,70256.0,0.0486357]
[1773112865355,0.07281446,70270.0,70258.0,0.0486357]
[1773112865356,0.03,70269.0,70258.0,0.0486357]
[1773112866366,0.07281973,70275.0,70260.0,0.0486357]
[1773112866981,0.07281973,70275.0,70247.0,0.0711766]
[1773112866982,0.25049432,70272.0,70247.0,0.0711766]
[1773112867192,0.03,70264.0,70251.0,0.00144]
[1773112867393,0.03,70262.0,70251.0,0.00144]
[1773112867735,0.03,70262.0,70252.0,0.0486357]
[1773112868445,0.07137932,70275.0,70254.0,0.23829945]
[1773112868600,0.00144,70269.0,70256.0,0.0486357]
[1773112868803,0.00144,70269.0,70255.0,0.23829945]
[1773112868804,0.00144,70269.0,70258.0,0.0486357]
[1773112870694,0.03,70268.0,70257.0,0.00144]
[1773112870908,0.07259533,70269.0,70254.0,0.00011397]
[1773112870909,0.32957491,70264.0,70258.0,0.00144]
[1773112871524,0.32957491,70264.0,70256.0,0.00144]
[1773112871878,0.03,70268.0,70254.0,0.07128419]
[1773112872222,0.03,70268.0,70255.0,0.04692739]
[1773112873162,0.03,70267.0,70257.0,0.04692739]
[1773112873371,0.00023,70275.0,70259.0,0.04692739]
[1773112873574,0.07281917,70275.0,70260.0,0.04836739]
[1773112873924,0.03,70273.0,70260.0,0.04836739]
[1773112875181,0.03,70273.0,70261.0,0.07116323]
[1773112875362,0.03,70272.0,70262.0,0.04692739]
[1773112875566,0.03,70272.0,70261.0,0.07116323]
[1773112875567,0.00022001,70277.0,70264.0,0.04692739]
[1773112875765,0.00022001,70277.0,70261.0,0.07116323]
[1773112875766,0.00022001,70279.0,70267.0,0.23829945]
[1773112875966,0.00022001,70279.0,70268.0,0.04836739]
[1773112877142,0.03,70280.0,70268.0,0.04836739]
[1773112877359,0.03,70280.0,70270.0,0.04692739]
[1773112877797,0.0678101,70284.0,70270.0,0.04692739]
[1773112878015,0.0678101,70284.0,70271.0,0.04692739]
[1773112878186,0.0678101,70284.0,70272.0,0.04692739]
[1773112878361,0.32162489,70294.0,70274.0,0.04692739]
[1773112878362,0.07257387,70291.0,70274.0,0.04692739]
[1773112878565,0.07257387,70291.0,70269.0,0.07115513]
[1773112878566,0.03,70294.0,70277.0,0.04692739]
[1773112878776,0.07113126,70293.0,70277.0,0.04692739]
[1773112878972,0.03562,70292.0,70277.0,0.04692739]
[1773112879177,0.07135423,70300.0,70279.0,0.04692739]
[1773112879375,0.07135423,70300.0,70283.0,0.04692739]
[1773112879722,0.00034406,70300.0,70285.0,0.23829945]
[1773112879842,0.03034406,70300.0,70286.0,0.04692739]
[1773112880296,0.03034406,70300.0,70285.0,0.23829945]
[1773112880297,0.03034406,70300.0,70287.0,0.23829945]
[1773112880481,0.25193432,70314.0,70290.0,0.04692739]
[1773112880689,0.07110879,70315.0,70294.0,0.04692739]
[1773112880888,0.03,70314.0,70297.0,0.23829945]
[1773112881092,0.03,70314.0,70298.0,0.04836739]
[1773112881297,0.03,70312.0,70299.0,0.07112476]
[1773112881517,0.32667583,70312.0,70299.0,0.07112476]
[1773112882046,0.077064,70320.0,70299.0,0.07112476]
[1773112882047,0.25049432,70319.0,70300.0,0.04692739]
[1773112882224,0.03,70317.0,70300.0,0.04836739]
[1773112882404,0.28049432,70313.0,70300.0,0.04836739]
[1773112882607,0.28049432,70313.0,70301.0,0.00144]
[1773112883358,0.03,70311.0,70302.0,0.07112173]
[1773112884311,0.03,70312.0,70302.0,0.07112173]
[1773112885785,0.10111178,70312.0,70302.0,0.07112173]
[1773112886978,0.10133179,70312.0,70302.0,0.07112173]
[1773112887383,0.10133169,70312.0,70301.0,0.07256173]
[1773112887557,0.10133169,70312.0,70302.0,0.07112173]
[1773112888734,0.03,70311.0,70303.0,0.04692739]
[1773112888955,0.07254862,70315.0,70303.0,0.04692739]
[1773112889271,0.1708,70344.0,70302.0,0.07112173]
[1773112889272,0.07728391,70320.0,70305.0,0.04692739]
[1773112889709,0.03,70319.0,70305.0,0.04692739]
[1773112890330,0.03,70317.0,70307.0,0.04692739]
[1773112890534,0.03,70317.0,70308.0,0.00144]
[1773112892438,0.03,70316.0,70309.0,0.07111465]
[1773112892776,0.03,70312.0,70305.0,0.00144]
[1773112892931,0.32957491,70312.0,70305.0,0.00144]
[1773112893102,0.32957491,70312.0,70299.0,0.07112476]
[1773112893303,0.32957491,70312.0,70300.0,0.00144]
[1773112893724,0.03,70311.0,70301.0,0.00144]
[1773112893928,0.03,70311.0,70302.0,0.04692739]
[1773112894731,0.03,70311.0,70297.0,0.07112476]
[1773112894732,0.03,70310.0,70282.0,0.1128817]
[1773112894938,0.07908059,70304.0,70290.0,0.072687]
[1773112895295,0.26686607,70303.0,70290.0,0.072687]
[1773112895445,0.03,70303.0,70290.0,0.071247]
[1773112895718,0.03,70303.0,70291.0,0.04836739]
[1773112896099,0.00144,70309.0,70291.0,0.04836739]
[1773112896713,0.03,70307.0,70292.0,0.11805923]
[1773112897369,0.07111566,70308.0,70290.0,0.00255406]
[1773112897370,0.26686607,70303.0,70290.0,0.00255406]
[1773112897570,0.31594666,70301.0,70290.0,0.00111406]
[1773112897887,0.31594666,70301.0,70290.0,0.00011406]
[1773112898091,0.07908059,70301.0,70290.0,0.00011406]
[1773112898287,0.03,70299.0,70292.0,0.001]
[1773112898709,0.03,70299.0,70290.0,0.00011406]
[1773112898889,0.03,70297.0,70290.0,0.00011406]
[1773112899042,0.03,70297.0,70290.0,0.00111406]
[1773112899250,0.03,70297.0,70283.0,0.0711401]
[1773112899251,0.00144,70296.0,70283.0,0.00144]
[1773112899454,0.00155395,70296.0,70283.0,0.04764141]
[1773112899654,0.00155395,70296.0,70283.0,0.00144]
[1773112899882,0.03,70290.0,70281.0,0.00144]
[1773112900404,0.03,70290.0,70281.0,0.04764141]
[1773112900810,0.10113452,70290.0,70282.0,0.07114197]
[1773112901032,0.10113452,70290.0,70281.0,0.00144]
[1773112901232,0.10113452,70290.0,70281.0,0.07258244]
[1773112902651,0.10113452,70290.0,70281.0,0.11878385]
[1773112902835,0.10113452,70290.0,70281.0,0.04764141]
[1773112903073,0.10113452,70290.0,70275.0,0.00023]
[1773112903286,0.03,70284.0,70263.0,0.07116025]
[1773112903488,0.03,70284.0,70260.0,0.07136422]
[1773112903489,0.03,70276.0,70265.0,0.00144]
[1773112903702,0.23686607,70277.0,70262.0,0.07116201]
[1773112903703,0.07875672,70274.0,70266.0,0.00144]
[1773112903905,0.23686607,70277.0,70264.0,0.07677987]
[1773112903906,0.03,70270.0,70264.0,0.00562]
[1773112904114,0.03,70270.0,70260.0,0.07136389]
[1773112904115,0.03,70270.0,70261.0,0.07116301]
[1773112904694,0.03,70270.0,70268.0,0.0002]
[1773112904896,0.07875672,70269.0,70268.0,0.0002]
[1773112906265,0.07875672,70269.0,70257.0,0.11736799]
[1773112906266,0.03,70263.0,70254.0,0.0003401]
[1773112906475,0.03,70261.0,70254.0,0.0730637]
[1773112907072,0.03,70261.0,70254.0,0.00189407]
[1773112907495,0.03,70260.0,70254.0,0.00189407]
[1773112908476,0.10116498,70260.0,70254.0,0.00189407]
[1773112908687,0.10116498,70260.0,70247.0,0.07137697]
[1773112908688,0.03,70258.0,70247.0,0.07137697]
[1773112908888,0.03,70258.0,70247.0,0.0002]
[1773112908889,0.26686607,70256.0,70247.0,0.0002]
[1773112909094,0.07875672,70252.0,70248.0,0.00144]
[1773112909295,0.03,70252.0,70241.0,0.07118288]
[1773112909501,0.03,70252.0,70239.0,0.07282493]
[1773112909502,0.03,70248.0,70239.0,0.07282493]
[1773112910125,0.03,70248.0,70239.0,0.07138493]
[1773112910332,0.03,70248.0,70241.0,0.07118349]
[1773112910545,0.03,70248.0,70240.0,0.07262436]
[1773112910546,0.10117666,70248.0,70240.0,0.07262436]
[1773112910992,0.10117666,70248.0,70239.0,0.0012]
[1773112910993,0.04875672,70247.0,70239.0,0.0012]
[1773112911238,0.33804273,70248.0,70239.0,0.0012]
[1773112911239,0.07875672,70246.0,70239.0,0.0012]
[1773112911913,0.03,70246.0,70239.0,0.07238538]
[1773112912044,0.03,70245.0,70239.0,0.07138538]
[1773112912656,0.07117682,70248.0,70239.0,0.07138538]
[1773112913059,0.07117682,70248.0,70240.0,0.0002]
[1773112913320,0.00144,70252.0,70240.0,0.0002]
[1773112913506,0.07260742,70257.0,70242.0,0.23613261]
[1773112913662,0.07260742,70257.0,70243.0,0.04705075]
[1773112913861,0.07116742,70257.0,70243.0,0.04705075]
[1773112914359,0.1011713,70254.0,70242.0,0.07118248]
[1773112914556,0.1011713,70254.0,70243.0,0.04705075]
[1773112915386,0.1011713,70254.0,70243.0,0.04805075]
[1773112916025,0.1011713,70254.0,70243.0,0.04705075]
[1773112916431,0.1011713,70254.0,70244.0,0.07118045]
[1773112916639,0.1011713,70254.0,70245.0,0.04705075]
[1773112917343,0.03,70252.0,70244.0,0.07118045]
[1773112918513,0.03,70253.0,70246.0,0.07117843]
[1773112918720,0.10117147,70253.0,70245.0,0.001]
[1773112918921,0.10117147,70253.0,70245.0,0.07117926]
[1773112919446,0.10117147,70253.0,70244.0,0.07217985]
[1773112919875,0.10117147,70253.0,70244.0,0.07117985]
[1773112920069,0.10117147,70253.0,70245.0,0.00244]
[1773112920623,0.10117147,70253.0,70246.0,0.07117843]
[1773112921088,0.03,70252.0,70246.0,0.07117843]
[1773112921943,0.03,70252.0,70245.0,0.07261882]
[1773112921944,0.03,70251.0,70245.0,0.07261882]
[1773112922182,0.04646396,70246.0,70240.0,0.0002]
[1773112922413,0.07117135,70253.0,70240.0,0.0002]
[1773112922414,0.03,70243.0,70240.0,0.0002]
[1773112923285,0.04646396,70248.0,70240.0,0.07138435]
[1773112923513,0.03,70247.0,70240.0,0.07138435]
[1773112923750,0.07116835,70256.0,70241.0,0.04849075]
[1773112923995,0.00011387,70258.0,70244.0,0.23344016]
[1773112924224,0.00011387,70258.0,70246.0,0.04705075]
[1773112924459,0.03011387,70258.0,70247.0,0.04849075]
[1773112924905,0.03011387,70258.0,70249.0,0.04705075]
[1773112925542,0.03,70257.0,70249.0,0.04705075]
[1773112926286,0.03,70257.0,70249.0,0.001]
[1773112926524,0.03,70257.0,70243.0,0.11823161]
[1773112926525,0.04646396,70254.0,70245.0,0.00144]
[1773112926749,0.03,70253.0,70246.0,0.07117843]
[1773112926975,0.03,70253.0,70245.0,0.11966944]
[1773112927144,0.03,70253.0,70245.0,0.07261869]
[1773112927595,0.03,70252.0,70245.0,0.07261881]
[1773112927797,0.04646396,70254.0,70245.0,0.07261881]
[1773112928281,0.04646396,70267.0,70247.0,0.04705075]
[1773112928499,0.07115623,70268.0,70251.0,0.04705075]
[1773112928705,0.03,70267.0,70253.0,0.04705075]
[1773112928909,0.03,70265.0,70254.0,0.11966107]
[1773112929986,0.03,70265.0,70255.0,0.04321997]
[1773112930214,0.00022001,70261.0,70255.0,0.04321997]
[1773112930388,0.00022001,70261.0,70255.0,0.04307256]
[1773112930655,0.00022001,70261.0,70256.0,0.00144]
[1773112930877,0.03,70260.0,70256.0,0.00144]
[1773112931782,0.00022001,70261.0,70256.0,0.00144]
[1773112932007,0.03,70264.0,70257.0,0.04321997]
[1773112932698,0.07137982,70275.0,70258.0,0.23344016]
[1773112932917,0.03,70271.0,70260.0,0.07116424]
[1773112933132,0.03,70269.0,70260.0,0.07116424]
[1773112933999,0.03,70267.0,70247.0,0.23364016]
[1773112934133,0.03,70265.0,70255.0,0.07116879]
[1773112934774,0.03,70265.0,70257.0,0.07116728]
[1773112935198,0.03,70264.0,70257.0,0.07116728]
[1773112936241,0.03,70263.0,70257.0,0.07116728]
[1773112937189,0.03,70264.0,70257.0,0.07116728]
[1773112937790,0.10116047,70264.0,70256.0,0.00144]
[1773112938036,0.10116047,70264.0,70256.0,0.07260811]
[1773112938531,0.03,70262.0,70257.0,0.00144]
[1773112938951,0.07116047,70264.0,70257.0,0.00144]
[1773112938952,0.03,70260.0,70257.0,0.00144]
[1773112939176,0.03,70260.0,70255.0,0.00144]
[1773112939386,0.03,70258.0,70247.0,0.0002]
[1773112939515,0.07109369,70256.0,70247.0,0.0002]
[1773112939917,0.07109369,70256.0,70247.0,0.00164]
[1773112940553,0.03,70255.0,70247.0,0.07381712]
[1773112940857,0.03,70255.0,70247.0,0.07237712]
[1773112941060,0.03,70255.0,70247.0,0.07281712]
[1773112941259,0.03,70255.0,70247.0,0.07381712]
[1773112941466,0.03,70256.0,70247.0,0.07381712]
[1773112942521,0.03,70256.0,70247.0,0.07281712]
[1773112942731,0.101169,70256.0,70247.0,0.07381712]
[1773112942927,0.03,70256.0,70247.0,0.07381712]
[1773112943183,0.03,70255.0,70247.0,0.07281712]
[1773112943410,0.04253369,70260.0,70247.0,0.07281712]
[1773112943411,0.11225837,70260.0,70247.0,0.07281712]
[1773112943558,0.11225799,70260.0,70247.0,0.23008267]
[1773112943764,0.04109369,70260.0,70248.0,0.11304558]
[1773112944119,0.07138073,70264.0,70255.0,0.11304558]
[1773112944120,0.00022001,70264.0,70255.0,0.11304558]
[1773112944267,0.00022001,70264.0,70256.0,0.00144]
[1773112944666,0.00022001,70264.0,70257.0,0.07116728]
[1773112947964,0.03,70261.0,70257.0,0.00144]
[1773112948294,0.03,70259.0,70257.0,0.00144]
[1773112948447,0.00022001,70264.0,70257.0,0.00182058]
[1773112949466,0.00022001,70264.0,70258.0,0.14121538]
[1773112949669,0.00022001,70264.0,70259.0,0.14106794]
[1773112949836,0.00022001,70264.0,70257.0,0.07298721]
[1773112951158,0.03,70263.0,70257.0,0.00182058]
[1773112952177,0.03,70262.0,70257.0,0.07298784]
[1773112952375,0.03,70262.0,70257.0,0.00182058]
[1773112953159,0.03,70262.0,70257.0,0.07298769]
[1773112953337,0.03,70261.0,70257.0,0.07298769]
[1773112953540,0.03,70261.0,70257.0,0.00182058]
[1773112953711,0.00022001,70264.0,70257.0,0.07298757]
[1773112954306,0.03022001,70264.0,70257.0,0.07298757]
[1773112954704,0.07115764,70267.0,70257.0,0.07298757]
[1773112955624,0.07115764,70267.0,70246.0,0.00144]
[1773112955625,0.04109369,70256.0,70246.0,0.00144]
[1773112955824,0.04109369,70256.0,70243.0,0.00144]
[1773112955825,0.03,70251.0,70243.0,0.00144]
[1773112956258,0.00038004,70256.0,70243.0,0.00144]
[1773112957266,0.00144,70255.0,70244.0,0.04321997]
[1773112957588,0.00038004,70256.0,70245.0,0.071032]
[1773112957759,0.00144,70255.0,70245.0,0.071032]
[1773112958484,0.00038004,70256.0,70245.0,0.07088459]
[1773112959089,0.00038004,70256.0,70245.0,0.07188459]
[1773112959387,0.03,70255.0,70246.0,0.04116229]
[1773112959592,0.03,70255.0,70247.0,0.07117741]
[1773112959998,0.03,70255.0,70247.0,0.1123397]
[1773112960297,0.03,70254.0,70247.0,0.1123397]
[1773112960916,0.03,70254.0,70243.0,0.07262053]
[1773112961074,0.03,70252.0,70243.0,0.07262053]
[1773112961413,0.03,70252.0,70246.0,0.001]
[1773112961759,0.03,70252.0,70243.0,0.07262053]
[1773112962387,0.03,70252.0,70247.0,0.0002]
[1773112962816,0.03,70252.0,70238.0,0.0002]
[1773112962817,0.10117285,70252.0,70238.0,0.0002]
[1773112963016,0.10117285,70252.0,70230.0,0.21194216]
[1773112963017,0.03,70246.0,70234.0,0.07119009]
[1773112963217,0.03,70244.0,70234.0,0.07119009]
[1773112964206,0.03,70243.0,70234.0,0.07119009]
[1773112965208,0.03,70242.0,70234.0,0.07119009]
[1773112966355,0.03,70241.0,70233.0,0.0726309]
[1773112966657,0.03,70239.0,70223.0,0.04116229]
[1773112966948,0.03,70239.0,70230.0,0.04116229]
[1773112967407,0.03,70239.0,70229.0,0.07139464]
[1773112967629,0.03,70239.0,70229.0,0.07283464]
[1773112970106,0.03,70238.0,70229.0,0.07283464]
[1773112970738,0.03,70234.0,70227.0,0.0017944]
[1773112970937,0.03,70234.0,70226.0,0.07132833]
[1773112970938,0.29533035,70238.0,70226.0,0.07132833]
[1773112970939,0.03,70232.0,70226.0,0.07132833]
[1773112971937,0.03,70237.0,70226.0,0.0714422]
[1773112972277,0.14017971,70237.0,70226.0,0.0714422]
[1773112973065,0.10118835,70237.0,70226.0,0.0714422]
[1773112973277,0.03,70235.0,70226.0,0.0713117]
[1773112973504,0.07118835,70237.0,70226.0,0.0713117]
[1773112973505,0.03,70233.0,70226.0,0.0713117]
[1773112973665,0.03,70233.0,70226.0,0.0723117]
[1773112974070,0.03,70233.0,70226.0,0.0713117]
[1773112974319,0.03,70233.0,70226.0,0.0723117]
[1773112974518,0.03,70237.0,70226.0,0.0723117]
[1773112974896,0.03,70237.0,70226.0,0.0713117]
[1773112975102,0.03,70237.0,70226.0,0.0723117]
[1773112975933,0.11017811,70238.0,70226.0,0.0723117]
[1773112975934,0.03,70235.0,70226.0,0.0723117]
[1773112976316,0.03,70235.0,70226.0,0.0713117]
[1773112976528,0.07117749,70247.0,70228.0,0.21770261]
[1773112976740,0.07117749,70247.0,70226.0,0.0723117]
[1773112976741,0.07117749,70247.0,70231.0,0.03940551]
[1773112976942,0.03,70246.0,70232.0,0.04084551]
[1773112977739,0.03,70246.0,70226.0,0.0725117]
[1773112977740,0.03,70244.0,70227.0,0.03940551]
[1773112977939,0.06899136,70242.0,70228.0,0.00144]
[1773112978190,0.06899136,70242.0,70228.0,0.04084551]
[1773112979360,0.140174,70242.0,70229.0,0.07119565]
[1773112979963,0.03,70241.0,70229.0,0.07119565]
[1773112980166,0.03,70241.0,70230.0,0.03940551]
[1773112980363,0.06899136,70241.0,70229.0,0.07119565]
[1773112982522,0.07117824,70247.0,70229.0,0.02119565]
[1773112982523,0.03,70240.0,70229.0,0.02119565]
[1773112982727,0.03,70240.0,70230.0,0.03940551]
[1773112982961,0.03,70240.0,70232.0,0.03940551]
[1773112983372,0.11161072,70247.0,70229.0,0.02119565]
[1773112983373,0.07117936,70247.0,70234.0,0.03940551]
[1773112983506,0.07117936,70247.0,70235.0,0.00144]
[1773112983711,0.03,70246.0,70235.0,0.00144]
[1773112984543,0.03,70244.0,70235.0,0.07262858]
[1773112985087,0.00022001,70240.0,70235.0,0.07262858]
[1773112985283,0.00022001,70240.0,70235.0,0.11203409]
[1773112985860,0.00022001,70240.0,70236.0,0.03940551]
[1773112986676,0.00022001,70240.0,70235.0,0.00144]
[1773112986901,0.03,70236.0,70231.0,0.00144]
[1773112987121,0.03,70234.0,70231.0,0.00144]
[1773112988141,0.03,70233.0,70231.0,0.00144]